[Event "*** Titled Tuesday Blitz"]
[Site "Chess.com"]
[Date "2020.05.05"]
[Round "4"]
[White "Evgeny81"]
[Black "Spring199"]
[Result "1-0"]
[WhiteElo "2665"]
[BlackElo "2354"]
[TimeControl "180+1"]
[EndTime "10:42:04 PDT"]
[Termination "Evgeny81 won on time"]

1. d4 {[%clk 0:03:00.9]} 1... d5 {[%clk 0:02:59.3]} 2. c4 {[%clk 0:02:59.1]}
2... e6 {[%clk 0:02:58.5]} 3. Nc3 {[%clk 0:02:58.6]} 3... Nf6 {[%clk 0:02:58]}
4. Bg5 {[%clk 0:02:54.7]} 4... Bb4 {[%clk 0:02:56.7]} 5. e3 {[%clk 0:02:52.4]}
5... O-O {[%clk 0:02:48.1]} 6. cxd5 {[%clk 0:02:52.5]} 6... exd5 {[%clk
0:02:42.6]} 7. Bd3 {[%clk 0:02:52.3]} 7... h6 {[%clk 0:02:41.7]} 8. Bh4 {[%clk
0:02:51.3]} 8... Nbd7 {[%clk 0:02:40.4]} 9. Ne2 {[%clk 0:02:49.7]} 9... c6
{[%clk 0:02:40.1]} 10. O-O {[%clk 0:02:49.2]} 10... Re8 {[%clk 0:02:38.9]} 11.
a3 {[%clk 0:02:47.3]} 11... Bd6 {[%clk 0:02:38.1]} 12. b4 {[%clk 0:02:47.6]}
12... Nf8 {[%clk 0:02:35.1]} 13. Rb1 {[%clk 0:02:44.6]} 13... a6 {[%clk
0:02:27.6]} 14. a4 {[%clk 0:02:43.9]} 14... Bg4 {[%clk 0:02:26.6]} 15. b5 {[%clk
0:02:38.5]} 15... axb5 {[%clk 0:02:25.7]} 16. axb5 {[%clk 0:02:38.6]} 16... Ra3
{[%clk 0:02:24.5]} 17. Qc2 {[%clk 0:02:29.7]} 17... Bh5 {[%clk 0:02:03.1]} 18.
bxc6 {[%clk 0:02:22.1]} 18... bxc6 {[%clk 0:02:04]} 19. Bg3 {[%clk 0:02:19.9]}
19... Bg6 {[%clk 0:02:00.3]} 20. Bxd6 {[%clk 0:02:16.2]} 20... Qxd6 {[%clk
0:02:01.2]} 21. Nf4 {[%clk 0:02:14.6]} 21... Bxd3 {[%clk 0:01:52.5]} 22. Nxd3
{[%clk 0:02:15.2]} 22... N8d7 {[%clk 0:01:52.3]} 23. Rb7 {[%clk 0:02:10]} 23...
Rea8 {[%clk 0:01:50.5]} 24. h3 {[%clk 0:02:06.6]} 24... Ra1 {[%clk 0:01:42.3]}
25. Rfb1 {[%clk 0:02:03.6]} 25... Rxb1+ {[%clk 0:01:36.5]} 26. Qxb1 {[%clk
0:02:04.2]} 26... Qa3 {[%clk 0:01:36]} 27. Rb3 {[%clk 0:02:02.7]} 27... Qa1
{[%clk 0:01:31.8]} 28. Kf1 {[%clk 0:02:01]} 28... Qa6 {[%clk 0:01:22.4]} 29. Ke1
{[%clk 0:01:50.2]} 29... Nf8 {[%clk 0:01:05.3]} 30. Rb2 {[%clk 0:01:48.5]} 30...
Ne6 {[%clk 0:01:03.9]} 31. Ra2 {[%clk 0:01:47.6]} 31... Qc8 {[%clk 0:01:03.3]}
32. Rxa8 {[%clk 0:01:46.8]} 32... Qxa8 {[%clk 0:01:04.2]} 33. Qa2 {[%clk
0:01:45.7]} 33... Qb7 {[%clk 0:01:01.8]} 34. Qb2 {[%clk 0:01:41.6]} 34... Qa7
{[%clk 0:01:00.8]} 35. Ne5 {[%clk 0:01:40]} 35... Qa5 {[%clk 0:00:53.8]} 36.
Nxc6 {[%clk 0:01:36.6]} 36... Qa6 {[%clk 0:00:44.1]} 37. Ne7+ {[%clk 0:01:29.9]}
37... Kh8 {[%clk 0:00:39.9]} 38. Nexd5 {[%clk 0:01:30.1]} 38... Nxd5 {[%clk
0:00:34.7]} 39. Nxd5 {[%clk 0:01:30.7]} 39... Qd3 {[%clk 0:00:34.6]} 40. Nc3
{[%clk 0:01:24]} 40... g6 {[%clk 0:00:28.5]} 41. d5 {[%clk 0:01:17.1]} 41... Ng7
{[%clk 0:00:23.2]} 42. Qd2 {[%clk 0:01:13.5]} 42... Qa6 {[%clk 0:00:21.5]} 43.
d6 {[%clk 0:01:11.7]} 43... Ne6 {[%clk 0:00:20.7]} 44. d7 {[%clk 0:01:10.3]}
44... Qa1+ {[%clk 0:00:19.4]} 45. Ke2 {[%clk 0:01:04.9]} 45... Qa6+ {[%clk
0:00:18.7]} 46. Qd3 {[%clk 0:01:05.4]} 46... Qa8 {[%clk 0:00:18.9]} 47. f3
{[%clk 0:01:00.2]} 47... Kg7 {[%clk 0:00:18.5]} 48. Kf2 {[%clk 0:01:00.1]} 48...
Kf8 {[%clk 0:00:18]} 49. Ne4 {[%clk 0:00:59.4]} 49... Qa2+ {[%clk 0:00:13.8]}
50. Kg3 {[%clk 0:00:57.3]} 50... Qa8 {[%clk 0:00:14.7]} 51. Qd6+ {[%clk
0:00:56.7]} 51... Kg8 {[%clk 0:00:13.3]} 52. Kh2 {[%clk 0:00:55.2]} 52... Qd8
{[%clk 0:00:11.5]} 53. g4 {[%clk 0:00:37.7]} 53... h5 {[%clk 0:00:10.7]} 54. g5
{[%clk 0:00:35.8]} 54... h4 {[%clk 0:00:09.6]} 55. f4 {[%clk 0:00:32.4]} 55...
Nf8 {[%clk 0:00:09.2]} 56. Kg2 {[%clk 0:00:30.7]} 56... Ne6 {[%clk 0:00:05.7]}
57. Kf3 {[%clk 0:00:30.1]} 57... Qa8 {[%clk 0:00:05.3]} 58. Qe5 {[%clk
0:00:25.7]} 58... Qa2 {[%clk 0:00:03.6]} 59. Qxe6 {[%clk 0:00:22.2]} 59... Qxe6
{[%clk 0:00:02.4]} 60. d8=Q+ {[%clk 0:00:22.2]} 60... Kg7 {[%clk 0:00:02.6]} 61.
Qf6+ {[%clk 0:00:21.1]} 61... Qxf6 {[%clk 0:00:02.2]} 62. Nxf6 {[%clk
0:00:20.5]} 1-0

[Event "*** Titled Tuesday Blitz"]
[Site "Chess.com"]
[Date "2020.05.05"]
[Round "4"]
[White "vpsetter"]
[Black "Jospem"]
[Result "1-0"]
[WhiteElo "2617"]
[BlackElo "2838"]
[TimeControl "180+1"]
[EndTime "10:42:06 PDT"]
[Termination "vpsetter won by checkmate"]

1. e4 {[%clk 0:03:00.7]} 1... c5 {[%clk 0:02:58.8]} 2. Nf3 {[%clk 0:03:01]} 2...
d6 {[%clk 0:02:59.2]} 3. d4 {[%clk 0:03:01.5]} 3... cxd4 {[%clk 0:03:00.1]} 4.
Nxd4 {[%clk 0:03:02.4]} 4... Nf6 {[%clk 0:03:01]} 5. Nc3 {[%clk 0:03:02.9]} 5...
a6 {[%clk 0:03:01.6]} 6. Be3 {[%clk 0:03:01.8]} 6... e6 {[%clk 0:02:59.3]} 7.
Be2 {[%clk 0:02:54.2]} 7... Be7 {[%clk 0:02:58.1]} 8. O-O {[%clk 0:02:54]} 8...
O-O {[%clk 0:02:58.6]} 9. f4 {[%clk 0:02:53.8]} 9... Qc7 {[%clk 0:02:56.8]} 10.
g4 {[%clk 0:02:49.7]} 10... Nc6 {[%clk 0:02:56.3]} 11. g5 {[%clk 0:02:48.9]}
11... Nd7 {[%clk 0:02:56.5]} 12. h4 {[%clk 0:02:47.1]} 12... Re8 {[%clk
0:02:47.4]} 13. Qd2 {[%clk 0:02:34.5]} 13... b5 {[%clk 0:02:45]} 14. Nxc6 {[%clk
0:02:12.8]} 14... Qxc6 {[%clk 0:02:41.6]} 15. Bf3 {[%clk 0:02:13.3]} 15... Qc7
{[%clk 0:02:23.5]} 16. Ne2 {[%clk 0:01:58.6]} 16... Bb7 {[%clk 0:02:20.5]} 17.
Ng3 {[%clk 0:01:58.6]} 17... Rac8 {[%clk 0:02:13.7]} 18. c3 {[%clk 0:01:58.4]}
18... Bf8 {[%clk 0:02:13.5]} 19. Rad1 {[%clk 0:01:55.2]} 19... Nb6 {[%clk
0:02:12.1]} 20. Qe2 {[%clk 0:01:42.5]} 20... Nc4 {[%clk 0:02:08.3]} 21. Bc1
{[%clk 0:01:42.8]} 21... Rcd8 {[%clk 0:01:41]} 22. h5 {[%clk 0:01:15.8]} 22...
e5 {[%clk 0:01:27]} 23. f5 {[%clk 0:01:14.3]} 23... d5 {[%clk 0:01:27.2]} 24.
Kg2 {[%clk 0:01:06.6]} 24... d4 {[%clk 0:01:22.6]} 25. f6 {[%clk 0:00:54.2]}
25... Bc8 {[%clk 0:01:10.4]} 26. fxg7 {[%clk 0:00:50.4]} 26... Bxg7 {[%clk
0:01:10.3]} 27. h6 {[%clk 0:00:45.8]} 27... Bf8 {[%clk 0:01:10.4]} 28. Nh5
{[%clk 0:00:44.1]} 28... Be7 {[%clk 0:01:10.6]} 29. Bg4 {[%clk 0:00:40.4]} 29...
d3 {[%clk 0:01:03.1]} 30. Qf3 {[%clk 0:00:35.1]} 30... Rf8 {[%clk 0:01:03.3]}
31. Nf6+ {[%clk 0:00:27.3]} 31... Kh8 {[%clk 0:01:03.1]} 32. Nd5 {[%clk
0:00:26.5]} 32... Rxd5 {[%clk 0:00:36.1]} 33. exd5 {[%clk 0:00:26.7]} 33... f5
{[%clk 0:00:37]} 34. gxf6 {[%clk 0:00:26.1]} 34... Rxf6 {[%clk 0:00:37.6]} 35.
Qxf6+ {[%clk 0:00:16.3]} 35... Bxf6 {[%clk 0:00:37.7]} 36. Rxf6 {[%clk
0:00:16.6]} 36... Qd8 {[%clk 0:00:35.3]} 37. Rdf1 {[%clk 0:00:15.1]} 37... Qg8
{[%clk 0:00:34.5]} 38. Rf8 {[%clk 0:00:13.9]} 38... d2 {[%clk 0:00:30.8]} 39.
Rxg8+ {[%clk 0:00:12.7]} 39... Kxg8 {[%clk 0:00:31.7]} 40. Bxc8 {[%clk 0:00:08]}
40... Ne3+ {[%clk 0:00:31.3]} 41. Kf2 {[%clk 0:00:07.4]} 41... Nxf1 {[%clk
0:00:32.2]} 42. Bxd2 {[%clk 0:00:07.4]} 42... Nxd2 {[%clk 0:00:33.1]} 43. Ke3
{[%clk 0:00:07.4]} 43... Nc4+ {[%clk 0:00:33]} 44. Ke4 {[%clk 0:00:05.7]} 44...
Nd6+ {[%clk 0:00:04.4]} 45. Kxe5 {[%clk 0:00:06.2]} 45... Nxc8 {[%clk
0:00:05.3]} 46. d6 {[%clk 0:00:06.9]} 46... Nb6 {[%clk 0:00:05.6]} 47. Ke6
{[%clk 0:00:07.3]} 47... Kf8 {[%clk 0:00:05.9]} 48. d7 {[%clk 0:00:07.7]} 48...
Nxd7 {[%clk 0:00:06.8]} 49. Kxd7 {[%clk 0:00:08.3]} 49... Kf7 {[%clk 0:00:07.7]}
50. b3 {[%clk 0:00:08.8]} 50... Kg6 {[%clk 0:00:07.9]} 51. c4 {[%clk 0:00:09.4]}
51... bxc4 {[%clk 0:00:08.8]} 52. bxc4 {[%clk 0:00:10]} 52... Kxh6 {[%clk
0:00:09.7]} 53. c5 {[%clk 0:00:10.8]} 53... Kg5 {[%clk 0:00:10.6]} 54. c6 {[%clk
0:00:11.5]} 54... h5 {[%clk 0:00:08.7]} 55. c7 {[%clk 0:00:12.3]} 55... h4
{[%clk 0:00:06.4]} 56. c8=Q {[%clk 0:00:13]} 56... Kg4 {[%clk 0:00:07.3]} 57.
Kd6+ {[%clk 0:00:13.1]} 57... Kg3 {[%clk 0:00:08.2]} 58. Qxa6 {[%clk 0:00:13.3]}
58... h3 {[%clk 0:00:09.1]} 59. Qf1 {[%clk 0:00:12.7]} 59... h2 {[%clk 0:00:10]}
60. Qh1 {[%clk 0:00:12.6]} 60... Kh3 {[%clk 0:00:10.9]} 61. a4 {[%clk
0:00:12.9]} 61... Kg3 {[%clk 0:00:11.7]} 62. a5 {[%clk 0:00:13.5]} 62... Kh3
{[%clk 0:00:12.6]} 63. a6 {[%clk 0:00:14.3]} 63... Kg3 {[%clk 0:00:13.5]} 64. a7
{[%clk 0:00:14.9]} 64... Kh3 {[%clk 0:00:14.4]} 65. a8=Q {[%clk 0:00:15.7]}
65... Kg3 {[%clk 0:00:15.3]} 66. Qaf3+ {[%clk 0:00:14.7]} 66... Kh4 {[%clk
0:00:13.4]} 67. Qxh2+ {[%clk 0:00:15.1]} 67... Kg5 {[%clk 0:00:14.3]} 68. Qhh5#
{[%clk 0:00:15.4]} 1-0

[Event "*** Titled Tuesday Blitz"]
[Site "Chess.com"]
[Date "2020.05.05"]
[Round "4"]
[White "Problematique_99"]
[Black "Zkid"]
[Result "0-1"]
[WhiteElo "2555"]
[BlackElo "2817"]
[TimeControl "180+1"]
[EndTime "10:42:07 PDT"]
[Termination "Zkid won by resignation"]

1. e4 {[%clk 0:03:00.7]} 1... e6 {[%clk 0:02:59.7]} 2. d4 {[%clk 0:03:00.5]}
2... d5 {[%clk 0:02:59.9]} 3. exd5 {[%clk 0:03:01.4]} 3... exd5 {[%clk
0:02:59.9]} 4. Nf3 {[%clk 0:03:01.9]} 4... Nc6 {[%clk 0:03:00.2]} 5. c3 {[%clk
0:03:01.8]} 5... Bd6 {[%clk 0:02:59.9]} 6. Bd3 {[%clk 0:03:02.1]} 6... Nge7
{[%clk 0:03:00.4]} 7. O-O {[%clk 0:03:02.2]} 7... Bg4 {[%clk 0:03:00.3]} 8. Re1
{[%clk 0:03:02.7]} 8... Qd7 {[%clk 0:03:00.1]} 9. Nbd2 {[%clk 0:03:02.1]} 9...
f6 {[%clk 0:02:57.1]} 10. b4 {[%clk 0:02:56.7]} 10... O-O {[%clk 0:02:55.8]} 11.
Qc2 {[%clk 0:02:51]} 11... Bf5 {[%clk 0:02:53.9]} 12. a4 {[%clk 0:02:43.9]}
12... Bxd3 {[%clk 0:02:47]} 13. Qxd3 {[%clk 0:02:43.8]} 13... Ng6 {[%clk
0:02:47.6]} 14. Nb3 {[%clk 0:02:43.1]} 14... Rfe8 {[%clk 0:02:43.1]} 15. Bd2
{[%clk 0:02:39.8]} 15... Nce7 {[%clk 0:02:24.1]} 16. a5 {[%clk 0:02:30.8]} 16...
a6 {[%clk 0:02:21.2]} 17. Re2 {[%clk 0:02:23.8]} 17... Nf5 {[%clk 0:02:02.8]}
18. Rae1 {[%clk 0:02:15.9]} 18... Kf7 {[%clk 0:02:02.2]} 19. Rxe8 {[%clk
0:02:12.1]} 19... Rxe8 {[%clk 0:02:02.2]} 20. Rxe8 {[%clk 0:02:11.8]} 20... Kxe8
{[%clk 0:02:02]} 21. g3 {[%clk 0:02:07]} 21... Be7 {[%clk 0:01:54.7]} 22. h4
{[%clk 0:01:58.8]} 22... Nd6 {[%clk 0:01:51.1]} 23. h5 {[%clk 0:01:53.5]} 23...
Nf8 {[%clk 0:01:48.7]} 24. Nc5 {[%clk 0:01:51.9]} 24... Qc8 {[%clk 0:01:33.3]}
25. Nh4 {[%clk 0:01:42.6]} 25... b6 {[%clk 0:01:26.8]} 26. axb6 {[%clk
0:01:31.7]} 26... cxb6 {[%clk 0:01:27.7]} 27. Nxa6 {[%clk 0:01:30]} 27... Nc4
{[%clk 0:01:23.8]} 28. b5 {[%clk 0:01:30.1]} 28... Kf7 {[%clk 0:01:12.1]} 29.
Bf4 {[%clk 0:01:26.2]} 29... g5 {[%clk 0:01:07.6]} 30. hxg6+ {[%clk 0:01:25.7]}
30... hxg6 {[%clk 0:01:08.5]} 31. Nf3 {[%clk 0:01:20.1]} 31... Ne6 {[%clk
0:01:03.2]} 32. Bc1 {[%clk 0:01:13.6]} 32... Qd7 {[%clk 0:01:00.3]} 33. Nh4
{[%clk 0:01:05.5]} 33... Nf8 {[%clk 0:00:56.9]} 34. Qf3 {[%clk 0:01:03.5]} 34...
f5 {[%clk 0:00:49.3]} 35. Kg2 {[%clk 0:00:45.8]} 35... Bxh4 {[%clk 0:00:42.6]}
36. gxh4 {[%clk 0:00:46]} 36... Ne6 {[%clk 0:00:41.7]} 37. h5 {[%clk 0:00:44.1]}
37... Qxb5 {[%clk 0:00:39.4]} 38. hxg6+ {[%clk 0:00:44]} 38... Kxg6 {[%clk
0:00:32.8]} 39. Qg3+ {[%clk 0:00:40.1]} 39... Kf7 {[%clk 0:00:31.5]} 40. Nc7
{[%clk 0:00:40.3]} 40... Qd7 {[%clk 0:00:28.9]} 41. Nxe6 {[%clk 0:00:36.1]}
41... Qxe6 {[%clk 0:00:29.8]} 42. Bf4 {[%clk 0:00:30.2]} 42... Qe4+ {[%clk
0:00:25]} 43. Kh2 {[%clk 0:00:27.1]} 43... Qe2 {[%clk 0:00:20.5]} 44. Qg2 {[%clk
0:00:21.7]} 44... Qh5+ {[%clk 0:00:17.8]} 45. Kg1 {[%clk 0:00:20.9]} 45... Qg4
{[%clk 0:00:13.9]} 46. Bg3 {[%clk 0:00:15.3]} 46... Ke6 {[%clk 0:00:12.8]} 47.
Qh2 {[%clk 0:00:14.1]} 47... Qg6 {[%clk 0:00:10.1]} 48. Qh4 {[%clk 0:00:12.4]}
48... Nd2 {[%clk 0:00:08.7]} 49. Qd8 {[%clk 0:00:12.4]} 49... Ne4 {[%clk
0:00:05.5]} 50. Qxb6+ {[%clk 0:00:12.4]} 50... Kf7 {[%clk 0:00:06.2]} 51. Qxg6+
{[%clk 0:00:12.2]} 51... Kxg6 {[%clk 0:00:07.1]} 52. Kg2 {[%clk 0:00:11.6]}
52... Nxc3 {[%clk 0:00:06.2]} 53. Be5 {[%clk 0:00:12.5]} 53... Ne4 {[%clk
0:00:05.1]} 54. f3 {[%clk 0:00:12.5]} 54... Ng5 {[%clk 0:00:05.3]} 55. Kg3
{[%clk 0:00:12.4]} 55... Ne6 {[%clk 0:00:05.7]} 56. Kf2 {[%clk 0:00:12.5]} 56...
Kg5 {[%clk 0:00:05.1]} 57. Ke2 {[%clk 0:00:11.6]} 57... Kh4 {[%clk 0:00:05.2]}
58. Kf2 {[%clk 0:00:11.8]} 58... Kh3 {[%clk 0:00:05.6]} 59. Bf6 {[%clk 0:00:11]}
59... Nf4 {[%clk 0:00:05.1]} 60. Be5 {[%clk 0:00:11]} 60... Ng6 {[%clk 0:00:05]}
61. Ke3 {[%clk 0:00:10.9]} 61... Kg2 {[%clk 0:00:04.6]} 62. Bd6 {[%clk
0:00:08.9]} 62... Kf1 {[%clk 0:00:04.8]} 63. Bc5 {[%clk 0:00:08.7]} 63... f4+
{[%clk 0:00:04.4]} 64. Kd3 {[%clk 0:00:07.7]} 64... Kf2 {[%clk 0:00:05.3]} 65.
Bd6 {[%clk 0:00:07]} 65... Kxf3 {[%clk 0:00:06.2]} 66. Kd2 {[%clk 0:00:07.4]}
66... Ke4 {[%clk 0:00:06.2]} 67. Bc5 {[%clk 0:00:07.9]} 67... Nh4 {[%clk
0:00:06.4]} 68. Ke2 {[%clk 0:00:08.8]} 68... Nf5 {[%clk 0:00:07.2]} 69. Bb6
{[%clk 0:00:07.8]} 69... Nxd4+ {[%clk 0:00:08.1]} 70. Kf2 {[%clk 0:00:07.4]}
70... Nf5 {[%clk 0:00:07.8]} 71. Ba5 {[%clk 0:00:07.6]} 71... d4 {[%clk
0:00:08.7]} 72. Ke2 {[%clk 0:00:07.8]} 72... Ne3 {[%clk 0:00:09]} 73. Kf2 {[%clk
0:00:08.7]} 73... d3 {[%clk 0:00:09.4]} 0-1

[Event "*** Titled Tuesday Blitz"]
[Site "Chess.com"]
[Date "2020.05.05"]
[Round "4"]
[White "bascheyaro"]
[Black "thedjoker98"]
[Result "1/2-1/2"]
[WhiteElo "2697"]
[BlackElo "2490"]
[TimeControl "180+1"]
[EndTime "10:42:10 PDT"]
[Termination "Game drawn - insufficient material"]

1. d4 {[%clk 0:02:54]} 1... d5 {[%clk 0:02:58.4]} 2. c4 {[%clk 0:02:53.9]} 2...
c6 {[%clk 0:02:57.3]} 3. Nf3 {[%clk 0:02:54.4]} 3... Nf6 {[%clk 0:02:57.6]} 4.
Nc3 {[%clk 0:02:54.6]} 4... dxc4 {[%clk 0:02:58.1]} 5. Bg5 {[%clk 0:02:54.6]}
5... h6 {[%clk 0:02:54.7]} 6. Bxf6 {[%clk 0:02:54.5]} 6... exf6 {[%clk
0:02:55.4]} 7. e3 {[%clk 0:02:54.6]} 7... Be6 {[%clk 0:02:53.9]} 8. a4 {[%clk
0:02:54.6]} 8... Nd7 {[%clk 0:02:51.3]} 9. Nd2 {[%clk 0:02:54.6]} 9... Be7
{[%clk 0:02:47.4]} 10. Bxc4 {[%clk 0:02:54.1]} 10... Bxc4 {[%clk 0:02:47.1]} 11.
Nxc4 {[%clk 0:02:54.2]} 11... O-O {[%clk 0:02:47.2]} 12. a5 {[%clk 0:02:53.2]}
12... Rc8 {[%clk 0:02:43.4]} 13. O-O {[%clk 0:02:52.6]} 13... Qc7 {[%clk
0:02:32.5]} 14. Qb3 {[%clk 0:02:50.7]} 14... b5 {[%clk 0:02:29.3]} 15. axb6
{[%clk 0:02:50.3]} 15... axb6 {[%clk 0:02:30.2]} 16. Rfd1 {[%clk 0:02:48.1]}
16... b5 {[%clk 0:02:21.7]} 17. Nd2 {[%clk 0:02:47.7]} 17... Nb6 {[%clk
0:02:21.5]} 18. Rac1 {[%clk 0:02:43.9]} 18... Qd7 {[%clk 0:02:20]} 19. Nce4
{[%clk 0:02:35.9]} 19... Na4 {[%clk 0:02:14.5]} 20. Nb1 {[%clk 0:02:22.6]} 20...
Rfd8 {[%clk 0:02:12.9]} 21. Qc2 {[%clk 0:02:17.9]} 21... Qf5 {[%clk 0:02:09.2]}
22. b3 {[%clk 0:02:10.2]} 22... Nb6 {[%clk 0:02:06.8]} 23. Nbc3 {[%clk
0:02:09.4]} 23... Nd5 {[%clk 0:02:03.3]} 24. Nxd5 {[%clk 0:02:06.3]} 24... cxd5
{[%clk 0:02:01.2]} 25. Nc5 {[%clk 0:02:06.5]} 25... Qxc2 {[%clk 0:01:58.1]} 26.
Rxc2 {[%clk 0:02:07.4]} 26... Ra8 {[%clk 0:01:33.9]} 27. g3 {[%clk 0:02:02.4]}
27... Ra3 {[%clk 0:01:31.6]} 28. Rb1 {[%clk 0:02:01.8]} 28... Rc8 {[%clk
0:01:27]} 29. b4 {[%clk 0:01:58.6]} 29... Rca8 {[%clk 0:01:23.3]} 30. Kg2 {[%clk
0:01:54.4]} 30... Ra2 {[%clk 0:01:22]} 31. Rxa2 {[%clk 0:01:47.2]} 31... Rxa2
{[%clk 0:01:22.9]} 32. Nd7 {[%clk 0:01:47.7]} 32... Ra6 {[%clk 0:01:14.3]} 33.
Rc1 {[%clk 0:01:44.8]} 33... Bxb4 {[%clk 0:01:11.2]} 34. Rc8+ {[%clk 0:01:42.7]}
34... Kh7 {[%clk 0:01:10.8]} 35. Rb8 {[%clk 0:01:42.8]} 35... Ra7 {[%clk
0:00:58.9]} 36. Rxb5 {[%clk 0:01:00.7]} 36... Rxd7 {[%clk 0:00:58.5]} 37. Rxb4
{[%clk 0:01:00.8]} 37... f5 {[%clk 0:00:59]} 38. Rb6 {[%clk 0:01:00.4]} 38... g5
{[%clk 0:00:50.8]} 39. h3 {[%clk 0:00:59.5]} 39... Kg7 {[%clk 0:00:50.6]} 40. g4
{[%clk 0:00:58.9]} 40... fxg4 {[%clk 0:00:49.2]} 41. hxg4 {[%clk 0:00:58.7]}
41... f6 {[%clk 0:00:49.1]} 42. Kg3 {[%clk 0:00:57.4]} 42... Kg6 {[%clk
0:00:49.3]} 43. f4 {[%clk 0:00:53.2]} 43... gxf4+ {[%clk 0:00:34.4]} 44. exf4
{[%clk 0:00:53.2]} 44... Rd8 {[%clk 0:00:34.6]} 45. Rb7 {[%clk 0:00:51.2]} 45...
h5 {[%clk 0:00:30]} 46. f5+ {[%clk 0:00:49.4]} 46... Kh6 {[%clk 0:00:30]} 47.
Rf7 {[%clk 0:00:42.3]} 47... hxg4 {[%clk 0:00:28.6]} 48. Kxg4 {[%clk 0:00:42.4]}
48... Rd6 {[%clk 0:00:25.5]} 49. Kf4 {[%clk 0:00:42.6]} 49... Ra6 {[%clk
0:00:21.5]} 50. Rd7 {[%clk 0:00:33.4]} 50... Ra1 {[%clk 0:00:20]} 51. Rxd5
{[%clk 0:00:33.1]} 51... Rf1+ {[%clk 0:00:20.5]} 52. Ke4 {[%clk 0:00:27]} 52...
Kg5 {[%clk 0:00:20.7]} 53. Rd8 {[%clk 0:00:24.8]} 53... Re1+ {[%clk 0:00:19.7]}
54. Kd5 {[%clk 0:00:23.5]} 54... Kxf5 {[%clk 0:00:19.9]} 55. Rg8 {[%clk
0:00:19.1]} 55... Rd1 {[%clk 0:00:19.5]} 56. Kc5 {[%clk 0:00:19.2]} 56... Ke4
{[%clk 0:00:19]} 57. Re8+ {[%clk 0:00:18.5]} 57... Kf4 {[%clk 0:00:18]} 58. d5
{[%clk 0:00:19.4]} 58... f5 {[%clk 0:00:18.1]} 59. d6 {[%clk 0:00:17.9]} 59...
Kg4 {[%clk 0:00:16.3]} 60. Kc6 {[%clk 0:00:17]} 60... f4 {[%clk 0:00:16]} 61.
Rg8+ {[%clk 0:00:17.3]} 61... Kh3 {[%clk 0:00:15.3]} 62. Rg5 {[%clk 0:00:16.8]}
62... f3 {[%clk 0:00:13.9]} 63. Rf5 {[%clk 0:00:16.5]} 63... Kg2 {[%clk
0:00:13.6]} 64. d7 {[%clk 0:00:16.2]} 64... f2 {[%clk 0:00:13.1]} 65. Rg5+
{[%clk 0:00:16.6]} 65... Kh2 {[%clk 0:00:13]} 66. Rh5+ {[%clk 0:00:16.5]} 66...
Kg3 {[%clk 0:00:13]} 67. Rf5 {[%clk 0:00:16.1]} 67... Rxd7 {[%clk 0:00:10.3]}
68. Kxd7 {[%clk 0:00:15.1]} 68... Kg2 {[%clk 0:00:10.5]} 69. Rg5+ {[%clk
0:00:15.5]} 69... Kh2 {[%clk 0:00:10.6]} 70. Rf5 {[%clk 0:00:16.4]} 70... Kg2
{[%clk 0:00:10.6]} 71. Ke6 {[%clk 0:00:16.8]} 71... f1=Q {[%clk 0:00:10.5]} 72.
Rxf1 {[%clk 0:00:17.7]} 72... Kxf1 {[%clk 0:00:11.4]} 1/2-1/2